fUSD/lending_fUSD_20251011
["ID","MTS","AMOUNT","RATE_DAILY","PERIOD"]
[390771988,1760142683679,-151.0,0.00019178,2]
[390771989,1760142683690,-500.0,0.00019178,2]
[390771990,1760142683700,-151.0,0.00019178,2]
[390771991,1760142683710,-500.0,0.00019178,2]
[390771992,1760142683720,-151.0,0.00019178,2]
[390771993,1760142683730,-462.64691161,0.00019178,2]
[390771994,1760142683739,-154.867441,0.00019178,2]
[390771995,1760142683750,-495.838628,0.00019178,2]
[390771996,1760142683760,-1277.834262,0.00019178,2]
[390771997,1760142683769,-151.0,0.00019178,2]
[390771998,1760142683779,-894.9,0.00019178,2]
[390771999,1760142683789,-8914.27,0.00019178,2]
[390772000,1760142683798,-151.0,0.00019178,2]
[390772001,1760142683808,-495.838628,0.00019178,2]
[390772002,1760142683817,-473.03587362,0.00019178,2]
[390772003,1760142683827,-154.867441,0.00019178,2]
[390772004,1760142683836,-1277.834262,0.00019178,2]
[390772005,1760142683846,-151.0,0.00019178,2]
[390772006,1760142683856,-4421.49,0.00019178,2]
[390772007,1760142683866,-176.0827,0.00019178,2]
[390772008,1760142683875,-154.867441,0.00019178,2]
[390772009,1760142683885,-500.0,0.00019178,2]
[390772010,1760142683895,-151.0,0.00019178,2]
[390772011,1760142683905,-500.0,0.00019178,2]
[390772012,1760142683915,-151.0,0.00019178,2]
[390772013,1760142683924,-500.0,0.00019178,2]
[390772014,1760142683936,-500.0,0.00019178,2]
[390772015,1760142683947,-695.96,0.00019178,2]
[390772016,1760142683956,-500.0,0.00019178,2]
[390772017,1760142683965,-154.867441,0.00019178,2]
[390772018,1760142683975,-500.0,0.00019178,2]
[390772019,1760142683985,-500.0,0.00019178,2]
[390772020,1760142683995,-500.0,0.00019178,2]
[390772021,1760142684005,-866.72,0.00019178,2]
[390772022,1760142684015,-151.0,0.00019178,2]
[390772023,1760142684024,-500.0,0.00019178,2]
[390772024,1760142684034,-500.0,0.00019178,2]
[390772025,1760142684044,-151.0,0.00019178,2]
[390772026,1760142684053,-500.0,0.00019178,2]
[390772027,1760142684063,-500.0,0.00019178,2]
[390772028,1760142684072,-500.0,0.00019178,2]
[390772029,1760142684082,-500.0,0.00019178,2]
[390772030,1760142684091,-500.0,0.00019178,2]
[390772031,1760142684101,-500.0,0.00019178,2]
[390772032,1760142684111,-400.0,0.00019178,2]
[390772033,1760142684121,-500.0,0.00019178,2]
[390772034,1760142684131,-151.0,0.00019178,2]
[390772035,1760142684140,-500.0,0.00019178,2]
[390772036,1760142684150,-151.0,0.00019178,2]
[390772037,1760142684160,-3569.59,0.00019178,2]
[390772038,1760142684169,-500.0,0.00019178,2]
[390772039,1760142684178,-151.0,0.00019178,2]
[390772040,1760142684191,-151.0,0.00019178,2]
[390772041,1760142684201,-500.0,0.00019178,2]
[390772042,1760142684210,-6033.7,0.00019178,2]
[390772043,1760142684220,-151.0,0.00019178,2]
[390772044,1760142684229,-777.52,0.00019178,2]
[390772045,1760142684239,-500.0,0.00019178,2]
[390772046,1760142684248,-1277.834262,0.00019178,2]
[390772047,1760142684259,-151.0,0.00019178,2]
[390772048,1760142684268,-668.57,0.00019178,2]
[390772049,1760142684278,-1977.1,0.00019178,2]
[390772050,1760142684288,-527.56,0.00019178,2]
[390772051,1760142684297,-1277.834262,0.00019178,2]
[390772052,1760142684307,-151.0,0.00019178,2]
[390772053,1760142684319,-1539.28,0.00019178,2]
[390772054,1760142684329,-500.0,0.00019178,2]
[390772055,1760142684338,-2026.19,0.00019178,2]
[390772056,1760142684348,-500.0,0.00019178,2]
[390772057,1760142684358,-500.0,0.00019178,2]
[390772058,1760142684367,-194.459628,0.00019178,2]
[390772059,1760142684378,-500.0,0.00019178,2]
[390772060,1760142684389,-500.0,0.00019178,2]
[390772061,1760142684398,-500.0,0.00019178,2]
[390772062,1760142684408,-500.0,0.00019178,2]
[390772063,1760142684417,-500.0,0.00019178,2]
[390772064,1760142684426,-500.0,0.00019178,2]
[390772065,1760142684438,-500.0,0.00019178,2]
[390772066,1760142684448,-500.0,0.00019178,2]
[390772067,1760142684458,-500.0,0.00019178,2]
[390772068,1760142684467,-500.0,0.00019178,2]
[390772069,1760142684477,-500.0,0.00019178,2]
[390772070,1760142684486,-500.0,0.00019178,2]
[390772071,1760142684495,-500.0,0.00019178,2]
[390772072,1760142684505,-500.0,0.00019178,2]
[390772073,1760142684514,-567.41014417,0.00019178,2]
[390772074,1760142684523,-3133.45,0.00019178,2]
[390772075,1760142684532,-151.0,0.00019178,2]
[390772076,1760142684542,-500.0,0.00019178,2]
[390772077,1760142684551,-402.6633248,0.00019178,2]
[390772078,1760142684561,-1830.98,0.00019178,2]
[390772079,1760142684570,-500.0,0.00019178,2]
[390772080,1760142684580,-1980.65,0.00019178,2]
[390772081,1760142684589,-2274.84,0.00019178,2]
[390772082,1760142684608,-500.0,0.00019178,2]
[390772083,1760142684618,-2314.66,0.00019178,2]
[390772084,1760142684628,-1780.92,0.00019178,2]
[390772085,1760142684639,-674.856579,0.00019178,2]
[390772086,1760142684649,-500.0,0.00019178,2]
[390772087,1760142684659,-500.0,0.00019178,2]
[390772088,1760142684669,-500.0,0.00019178,2]
[390772089,1760142684679,-674.856579,0.00019178,2]
[390772090,1760142684692,-151.0,0.00019178,2]
[390772091,1760142684702,-500.0,0.00019178,2]
[390772092,1760142684711,-500.0,0.00019178,2]
[390772093,1760142684720,-500.0,0.00019178,2]
[390772094,1760142684730,-674.856579,0.00019178,2]
[390772095,1760142684739,-851.45,0.00019178,2]
[390772096,1760142684749,-151.0,0.00019178,2]
[390772097,1760142684759,-14237.18,0.00019178,2]
[390772098,1760142684772,-14788.81,0.00019178,2]
[390772099,1760142684782,-400.0,0.00019178,2]
[390772100,1760142684791,-644.47,0.00019178,2]
[390772101,1760142684801,-151.899669,0.00019178,2]
[390772102,1760142684811,-674.856579,0.00019178,2]
[390772103,1760142684822,-151.0,0.00019178,2]
[390772104,1760142684832,-1586.59,0.00019178,2]
[390772105,1760142684843,-151.0,0.00019178,2]
[390772106,1760142684853,-500.0,0.00019178,2]
[390772107,1760142684863,-1080.82,0.00019178,2]
[390772108,1760142684872,-3005.36,0.00019178,2]
[390772109,1760142684882,-611.37,0.00019178,2]
[390772110,1760142684891,-151.0,0.00019178,2]
[390772111,1760142684901,-151.0,0.00019178,2]
[390772112,1760142684910,-500.0,0.00019178,2]
[390772113,1760142684919,-151.0,0.00019178,2]
[390772114,1760142684928,-530.74,0.00019178,2]
[390772115,1760142684940,-151.0,0.00019178,2]
[390772116,1760142684949,-151.0,0.00019178,2]
[390772117,1760142684958,-3375.06,0.00019178,2]
[390772118,1760142684967,-151.0,0.00019178,2]
[390772119,1760142684975,-500.0,0.00019178,2]
[390772120,1760142684984,-2225.09,0.00019178,2]
[390772121,1760142684993,-502.9,0.00019178,2]
[390772122,1760142685002,-1091.351732,0.00019178,2]
[390772123,1760142685010,-151.0,0.00019178,2]
[390772124,1760142685019,-1834.6,0.00019178,2]
[390772125,1760142685028,-1091.351732,0.00019178,2]
[390772126,1760142685037,-500.0,0.00019178,2]
[390772127,1760142685046,-151.0,0.00019178,2]
[390772128,1760142685055,-500.0,0.00019178,2]
[390772129,1760142685064,-2462.09,0.00019178,2]
[390772130,1760142685073,-1091.351732,0.00019178,2]
[390772131,1760142685082,-273.3577769,0.00019178,2]
[390772132,1760142685091,-500.0,0.00019178,2]
[390772133,1760142685099,-719.18,0.00019178,2]
[390772134,1760142685109,-151.0,0.00019178,2]
[390772135,1760142685118,-1091.351732,0.00019178,2]
[390772136,1760142685127,-500.0,0.00019178,2]
[390772137,1760142685136,-600.59,0.00019178,2]
[390772138,1760142685145,-500.0,0.00019178,2]
[390772139,1760142685155,-2561.72,0.00019178,2]
[390772140,1760142685164,-151.0,0.00019178,2]
[390772141,1760142685174,-191.56668796,0.00019178,2]
[390772142,1760142685183,-151.0,0.00019178,2]
[390772143,1760142685196,-243.544536,0.00019178,2]
[390772144,1760142685205,-500.0,0.00019178,2]
[390772145,1760142685215,-3360.8,0.00019178,2]
[390772146,1760142685224,-500.0,0.00019178,2]
[390772147,1760142685234,-151.0,0.00019178,2]
[390772148,1760142685243,-151.0,0.00019178,2]
[390772149,1760142685253,-1684.45,0.00019178,2]
[390772150,1760142685263,-850.93,0.00019178,2]
[390772151,1760142685273,-243.544536,0.00019178,2]
[390772152,1760142685283,-2018.83,0.00019178,2]
[390772153,1760142685294,-3922.55,0.00019178,2]
[390772154,1760142685305,-151.0,0.00019178,2]
[390772155,1760142685315,-151.0,0.00019178,2]
[390772156,1760142685324,-1643.92,0.00019178,2]
[390772157,1760142685334,-1555.090598,0.00019178,2]
[390772158,1760142685343,-500.0,0.00019178,2]
[390772159,1760142685352,-1555.090598,0.00019178,2]
[390772160,1760142685362,-151.0,0.00019178,2]
[390772161,1760142685371,-500.0,0.00019178,2]
[390772162,1760142685381,-1555.090598,0.00019178,2]
[390772163,1760142685391,-151.0,0.00019178,2]
[390772164,1760142685401,-151.0,0.00019178,2]
[390772165,1760142685409,-151.0,0.00019178,2]
[390772166,1760142685419,-1555.090598,0.00019178,2]
[390772167,1760142685428,-151.0,0.00019178,2]
[390772168,1760142685441,-155.647826,0.00019178,2]
[390772169,1760142685450,-500.0,0.00019178,2]
[390772170,1760142685460,-151.0,0.00019178,2]
[390772171,1760142685469,-30233.86,0.00019178,2]
[390772172,1760142685479,-243.544536,0.00019178,2]
[390772173,1760142685488,-2841.52,0.00019178,2]
[390772174,1760142685498,-151.0,0.00019178,2]
[390772175,1760142685507,-151.0,0.00019178,2]
[390772176,1760142685517,-202.304889,0.00019178,2]
[390772177,1760142685526,-155.647826,0.00019178,2]
[390772178,1760142685535,-12001.68,0.00019178,2]
[390772179,1760142685544,-3321.42,0.00019178,2]
[390772180,1760142685553,-500.0,0.00019178,2]
[390772181,1760142685563,-500.0,0.00019178,2]
[390772182,1760142685572,-500.0,0.00019178,2]
[390772183,1760142685582,-500.0,0.00019178,2]
[390772184,1760142685592,-243.544536,0.00019178,2]
[390772185,1760142685602,-272.1967,0.00019178,2]
[390772186,1760142685611,-500.0,0.00019178,2]
[390772187,1760142685623,-4419.01,0.00019178,2]
[390772188,1760142685632,-151.0,0.00019178,2]
[390772189,1760142685643,-500.0,0.00019178,2]
[390772190,1760142685652,-155.647826,0.00019178,2]
[390772191,1760142685662,-1606.96,0.00019178,2]
[390772192,1760142685672,-833.33,0.00019178,2]
[390772193,1760142685682,-570.49,0.00019178,2]
[390772194,1760142685695,-155.012466,0.00019178,2]
[390772195,1760142685705,-151.0,0.00019178,2]
[390772196,1760142685714,-155.647826,0.00019178,2]
[390772197,1760142685723,-724.07,0.00019178,2]
[390772198,1760142685733,-500.0,0.00019178,2]
[390772199,1760142685742,-500.0,0.00019178,2]
[390772200,1760142685751,-500.0,0.00019178,2]
[390772201,1760142685760,-269.713542,0.00019178,2]
[390772202,1760142685769,-500.0,0.00019178,2]
[390772203,1760142685778,-500.0,0.00019178,2]
[390772204,1760142685787,-151.0,0.00019178,2]
[390772205,1760142685797,-359.54545461,0.00019178,2]
[390772206,1760142685806,-511.72844257,0.00019178,2]
[390772207,1760142685815,-500.0,0.00019178,2]
[390772208,1760142685824,-269.713542,0.00019178,2]
[390772209,1760142685834,-151.0,0.00019178,2]
[390772210,1760142685843,-151.0,0.00019178,2]
[390772211,1760142685852,-501.79964935,0.00019178,2]
[390772212,1760142685862,-500.0,0.00019178,2]
[390772213,1760142685871,-269.713542,0.00019178,2]
[390772214,1760142685881,-26804.63,0.00019178,2]
[390772215,1760142685890,-151.0,0.00019178,2]
[390772216,1760142685899,-835.7,0.00019178,2]
[390772217,1760142685908,-1294.95,0.00019178,2]
[390772218,1760142685918,-317.30131647,0.00019178,2]
[390772219,1760142685927,-3184.49,0.00019178,2]
[390772220,1760142685939,-269.713542,0.00019178,2]
[390772221,1760142685948,-500.0,0.00019178,2]
[390772222,1760142685958,-1013.11,0.00019178,2]
[390772223,1760142685967,-151.0,0.00019178,2]
[390772224,1760142685976,-500.0,0.00019178,2]
[390772225,1760142685986,-570.14,0.00019178,2]
[390772226,1760142685996,-1687.38,0.00019178,2]
[390772227,1760142686005,-1232.27,0.00019178,2]
[390772228,1760142686015,-7295.45,0.00019178,2]
[390772229,1760142686024,-500.0,0.00019178,2]
[390772230,1760142686034,-533.27,0.00019178,2]
[390772231,1760142686044,-1563.12,0.00019178,2]
[390772232,1760142686054,-500.0,0.00019178,2]
[390772233,1760142686063,-155.012466,0.00019178,2]
[390772234,1760142686072,-654.346444,0.00019178,2]
[390772235,1760142686082,-326.703819,0.00019178,2]
[390772236,1760142686092,-155.012466,0.00019178,2]
[390772237,1760142686102,-654.346444,0.00019178,2]
[390772238,1760142686112,-1687.35,0.00019178,2]
[390772239,1760142686122,-326.703819,0.00019178,2]
[390772240,1760142686132,-654.346444,0.00019178,2]
[390772241,1760142686143,-155.012466,0.00019178,2]
[390772242,1760142686153,-500.0,0.00019178,2]
[390772243,1760142686163,-4491.0,0.00019178,2]
[390772244,1760142686172,-500.0,0.00019178,2]
[390772245,1760142686182,-3153.99,0.00019178,2]
[390772246,1760142686195,-654.346444,0.00019178,2]
[390772247,1760142686204,-326.703819,0.00019178,2]
[390772248,1760142686214,-2375.94,0.00019178,2]
[390772249,1760142686223,-326.703819,0.00019178,2]
[390772250,1760142686233,-500.0,0.00019178,2]
[390772251,1760142686242,-500.0,0.00019178,2]
[390772252,1760142686252,-500.0,0.00019178,2]
[390772253,1760142686261,-500.0,0.00019178,2]
[390772254,1760142686271,-500.0,0.00019178,2]
[390772255,1760142686281,-500.0,0.00019178,2]
[390772256,1760142686299,-500.0,0.00019178,2]
[390772257,1760142686308,-500.0,0.00019178,2]
[390772258,1760142686318,-151.0,0.00019178,2]
[390772259,1760142686328,-402.46883116,0.00019178,2]
[390772260,1760142686339,-324.82839753,0.00019178,2]
[390772261,1760142686349,-151.0,0.00019178,2]
[390772262,1760142686360,-500.0,0.00019178,2]
[390772263,1760142686371,-295.69124,0.00019178,2]
[390772264,1760142686381,-151.0,0.00019178,2]
[390772265,1760142686390,-500.0,0.00019178,2]
[390772266,1760142686400,-500.0,0.00019178,2]
[390772267,1760142686410,-500.0,0.00019178,2]
[390772268,1760142686420,-295.69124,0.00019178,2]
[390772269,1760142686429,-151.0,0.00019178,2]
[390772270,1760142686442,-1244.31,0.00019178,2]
[390772271,1760142686452,-528.56543704,0.00019178,2]
[390772272,1760142686462,-500.0,0.00019178,2]
[390772273,1760142686472,-295.69124,0.00019178,2]
[390772274,1760142686482,-500.0,0.00019178,2]
[390772275,1760142686492,-2046.65,0.00019178,2]
[390772276,1760142686502,-773.53,0.00019178,2]
[390772277,1760142686513,-500.0,0.00019178,2]
[390772278,1760142686522,-500.0,0.00019178,2]
[390772279,1760142686532,-1652.07,0.00019178,2]
[390772280,1760142686542,-295.69124,0.00019178,2]
[390772281,1760142686552,-500.0,0.00019178,2]
[390772282,1760142686562,-928.93,0.00019178,2]
[390772283,1760142686572,-2413.9,0.00019178,2]
[390772284,1760142686583,-500.0,0.00019178,2]
[390772285,1760142686594,-159.51839,0.00019178,2]
[390772286,1760142686603,-500.0,0.00019178,2]
[390772287,1760142686614,-500.0,0.00019178,2]
[390772288,1760142686623,-500.0,0.00019178,2]
[390772289,1760142686634,-727.41,0.00019178,2]
[390772290,1760142686644,-500.0,0.00019178,2]
[390772291,1760142686654,-500.0,0.00019178,2]
[390772292,1760142686664,-2059.43,0.00019178,2]
[390772293,1760142686674,-500.0,0.00019178,2]
[390772294,1760142686688,-500.0,0.00019178,2]
[390772295,1760142686700,-1807.69,0.00019178,2]
[390772296,1760142686710,-339.548239,0.00019178,2]
[390772297,1760142686721,-577.49,0.00019178,2]
[390772298,1760142686730,-339.548239,0.00019178,2]
[390772299,1760142686741,-4704.53,0.00019178,2]
[390772300,1760142686752,-151.0,0.00019178,2]
[390772301,1760142686763,-2026.46,0.00019178,2]
[390772302,1760142686774,-31984.07,0.00019178,2]
[390772303,1760142686785,-3257.46,0.00019178,2]
[390772304,1760142686796,-3697.09,0.00019178,2]
[390772305,1760142686807,-339.548239,0.00019178,2]
[390772306,1760142686819,-1540.53,0.00019178,2]
[390772307,1760142686830,-546.92,0.00019178,2]
[390772308,1760142686841,-500.0,0.00019178,2]
[390772309,1760142686852,-339.548239,0.00019178,2]
[390772310,1760142686863,-500.0,0.00019178,2]
[390772311,1760142686873,-500.0,0.00019178,2]
[390772312,1760142686884,-3353.12,0.00019178,2]
[390772313,1760142686894,-500.0,0.00019178,2]
[390772314,1760142686904,-5582.96,0.00019178,2]
[390772315,1760142686914,-1987.86,0.00019178,2]
[390772316,1760142686924,-500.0,0.00019178,2]
[390772317,1760142686935,-818.49,0.00019178,2]
[390772318,1760142686950,-226.40165504,0.00019178,2]
[390772319,1760142686960,-12608.08,0.00019178,2]
[390772320,1760142686971,-2675.08,0.00019178,2]
[390772321,1760142686981,-500.0,0.00019178,2]
[390772322,1760142686991,-151.0,0.00019178,2]
[390772323,1760142687000,-3064.08,0.00019178,2]
[390772324,1760142687011,-1767.78,0.00019178,2]
[390772325,1760142687021,-2121.1,0.00019178,2]
[390772326,1760142687032,-151.0,0.00019178,2]
[390772327,1760142687042,-500.0,0.00019178,2]
[390772328,1760142687052,-2713.41,0.00019178,2]
[390772329,1760142687063,-500.0,0.00019178,2]
[390772330,1760142687073,-500.0,0.00019178,2]
[390772331,1760142687085,-1474.05,0.00019178,2]
[390772332,1760142687095,-500.0,0.00019178,2]
[390772333,1760142687104,-500.0,0.00019178,2]
[390772334,1760142687114,-500.0,0.00019178,2]
[390772335,1760142687124,-500.0,0.00019178,2]
[390772336,1760142687133,-500.0,0.00019178,2]
[390772337,1760142687143,-182.338541,0.00019178,2]
[390772338,1760142687154,-1673.96,0.00019178,2]
[390772339,1760142687163,-151.0,0.00019178,2]
[390772340,1760142687173,-500.0,0.00019178,2]
[390772341,1760142687183,-500.0,0.00019178,2]
[390772342,1760142687197,-743.16,0.00019178,2]
[390772343,1760142687207,-3149.54,0.00019178,2]
[390772344,1760142687217,-182.338541,0.00019178,2]
[390772345,1760142687227,-1463.62,0.00019178,2]
[390772346,1760142687236,-743.16,0.00019178,2]
[390772347,1760142687246,-743.16,0.00019178,2]
[390772348,1760142687256,-5833.37,0.00019178,2]
[390772349,1760142687266,-743.16,0.00019178,2]
[390772350,1760142687276,-743.16,0.00019178,2]
[390772351,1760142687287,-266.92376967,0.00019178,2]
[390772352,1760142687297,-743.16,0.00019178,2]
[390772353,1760142687309,-743.16,0.00019178,2]
[390772354,1760142687320,-190.012527,0.00019178,2]
[390772355,1760142687330,-182.338541,0.00019178,2]
[390772356,1760142687340,-743.16,0.00019178,2]
[390772357,1760142687350,-1126.41,0.00019178,2]
[390772358,1760142687359,-743.16,0.00019178,2]
[390772359,1760142687370,-743.16,0.00019178,2]
[390772360,1760142687382,-743.16,0.00019178,2]
[390772361,1760142687392,-743.16,0.00019178,2]
[390772362,1760142687402,-1151.77,0.00019178,2]
[390772363,1760142687412,-743.16,0.00019178,2]
[390772364,1760142687422,-500.0,0.00019178,2]
[390772365,1760142687432,-190.012527,0.00019178,2]
[390772366,1760142687447,-743.16,0.00019178,2]
[390772367,1760142687457,-182.338541,0.00019178,2]
[390772368,1760142687467,-743.16,0.00019178,2]
[390772369,1760142687477,-743.16,0.00019178,2]
[390772370,1760142687487,-743.16,0.00019178,2]
[390772371,1760142687497,-743.16,0.00019178,2]
[390772372,1760142687507,-743.16,0.00019178,2]
[390772373,1760142687517,-743.16,0.00019178,2]
[390772374,1760142687527,-190.012527,0.00019178,2]
[390772375,1760142687537,-743.16,0.00019178,2]
[390772376,1760142687548,-743.16,0.00019178,2]
[390772377,1760142687561,-151.0,0.00019178,2]
[390772378,1760142687571,-4280.95,0.00019178,2]
[390772379,1760142687582,-172.728692,0.00019178,2]
[390772380,1760142687593,-743.16,0.00019178,2]
[390772381,1760142687603,-2244.33,0.00019178,2]
[390772382,1760142687613,-6740.08341,0.00019178,2]
[390772383,1760142687623,-500.0,0.00019178,2]
[390772384,1760142687634,-743.37692818,0.00019178,2]
[390772385,1760142687644,-190.012527,0.00019178,2]
[390772386,1760142687655,-500.0,0.00019178,2]
[390772387,1760142687665,-151.0,0.00019178,2]
[390772388,1760142687676,-3227.4,0.00019178,2]
[390772389,1760142687686,-500.0,0.00019178,2]
[390772390,1760142687700,-5471.37,0.00019178,2]
[390772391,1760142687711,-172.728692,0.00019178,2]
[390772392,1760142687721,-6740.08341,0.00019178,2]
[390772393,1760142687731,-500.0,0.00019178,2]
[390772394,1760142687741,-2454.31,0.00019178,2]
[390772395,1760142687752,-160.631054,0.00019178,2]
[390772396,1760142687762,-424.083877,0.00019178,2]
[390772397,1760142687771,-3584.45,0.00019178,2]
[390772398,1760142687781,-538.88,0.00019178,2]
[390772399,1760142687793,-172.728692,0.00019178,2]
[390772400,1760142687803,-6740.08341,0.00019178,2]
[390772401,1760142687813,-40402.75,0.00019178,2]
[390772402,1760142687823,-160.631054,0.00019178,2]
[390772403,1760142687833,-424.083877,0.00019178,2]
[390772404,1760142687843,-500.0,0.00019178,2]
[390772405,1760142687853,-172.728692,0.00019178,2]
[390772406,1760142687863,-6740.08341,0.00019178,2]
[390772407,1760142687872,-2465.43,0.00019178,2]
[390772408,1760142687882,-2642.12,0.00019178,2]
[390772409,1760142687892,-2879.01,0.00019178,2]
[390772410,1760142687902,-1826.52,0.00019178,2]
[390772411,1760142687913,-160.631054,0.00019178,2]
[390772412,1760142687923,-500.0,0.00019178,2]
[390772413,1760142687933,-151.0,0.00019178,2]
[390772414,1760142687948,-424.083877,0.00019178,2]
[390772415,1760142687958,-500.0,0.00019178,2]
[390772416,1760142687968,-847.69,0.00019178,2]
[390772417,1760142687978,-151.0,0.00019178,2]
[390772418,1760142687987,-160.631054,0.00019178,2]
[390772419,1760142687998,-424.083877,0.00019178,2]
[390772420,1760142688008,-3499.32,0.00019178,2]
[390772421,1760142688018,-1370.38,0.00019178,2]
[390772422,1760142688028,-151.0,0.00019178,2]
[390772423,1760142688038,-2667.41,0.00019178,2]
[390772424,1760142688048,-4237.11,0.00019178,2]
[390772425,1760142688058,-1761.97,0.00019178,2]
[390772426,1760142688067,-500.0,0.00019178,2]
[390772427,1760142688078,-500.78703392,0.00019178,2]
[390772428,1760142688088,-11639.38,0.00019178,2]
[390772429,1760142688098,-151.0,0.00019178,2]
[390772430,1760142688108,-502.76271131,0.00019178,2]
[390772431,1760142688118,-751.15,0.00019178,2]
[390772432,1760142688130,-500.0,0.00019178,2]
[390772433,1760142688140,-3820.94,0.00019178,2]
[390772434,1760142688150,-1330.44,0.00019178,2]
[390772435,1760142688161,-2051.76,0.00019178,2]
[390772436,1760142688171,-500.0,0.00019178,2]
[390772437,1760142688182,-1206.64,0.00019178,2]
[390772438,1760142688196,-2188.51,0.00019178,2]
[390772439,1760142688206,-500.0,0.00019178,2]
[390772440,1760142688216,-809.91,0.00019178,2]
[390772441,1760142688225,-500.0,0.00019178,2]
[390772442,1760142688235,-500.0,0.00019178,2]
[390772443,1760142688245,-3090.17,0.00019178,2]
[390772444,1760142688255,-2562.48,0.00019178,2]
[390772445,1760142688265,-500.0,0.00019178,2]
[390772446,1760142688275,-521.76314986,0.00019178,2]
[390772447,1760142688285,-514.72,0.00019178,2]
[390772448,1760142688299,-443.21518392,0.00019178,2]
[390772449,1760142688311,-500.0,0.00019178,2]
[390772450,1760142688664,-798.88,0.00019178,2]
[390772451,1760142688676,-500.0,0.00019178,2]
[390772452,1760142688686,-4553.29,0.00019178,2]
[390772453,1760142688698,-500.0,0.00019178,2]
[390772454,1760142688708,-1277.51,0.00019178,2]
[390772455,1760142688717,-151.0,0.00019178,2]
[390772456,1760142688727,-500.0,0.00019178,2]
[390772457,1760142688739,-500.0,0.00019178,2]
[390772458,1760142688748,-579.3,0.00019178,2]
[390772459,1760142688758,-1042.16,0.00019178,2]
[390772460,1760142688768,-151.0,0.00019178,2]
[390772461,1760142688777,-500.0,0.00019178,2]
[390772462,1760142688787,-500.0,0.00019178,2]
[390772463,1760142688796,-500.0,0.00019178,2]
[390772464,1760142688806,-500.0,0.00019178,2]
[390772465,1760142688816,-500.0,0.00019178,2]
[390772466,1760142688826,-5790.02,0.00019178,2]
[390772467,1760142688836,-500.0,0.00019178,2]
[390772468,1760142688845,-500.0,0.00019178,2]
[390772469,1760142688856,-3373.34,0.00019178,2]
[390772470,1760142688866,-3108.41,0.00019178,2]
[390772471,1760142688875,-1332.65,0.00019178,2]
[390772472,1760142688884,-508.67639962,0.00019178,2]
[390772473,1760142688894,-900.75,0.00019178,2]
[390772474,1760142688904,-2516.36,0.00019178,2]
[390772475,1760142688914,-3326.14,0.00019178,2]
[390772476,1760142688924,-1508.58,0.00019178,2]
[390772477,1760142688934,-3830.12,0.00019178,2]
[390772478,1760142688948,-151.0,0.00019178,2]
[390772479,1760142688958,-1233.59,0.00019178,2]
[390772480,1760142688967,-500.0,0.00019178,2]
[390772481,1760142688980,-500.0,0.00019178,2]
[390772482,1760142688989,-3650.37,0.00019178,2]
[390772483,1760142688998,-2583.19,0.00019178,2]
[390772484,1760142689009,-1769.302141,0.00019178,2]
[390772485,1760142689018,-500.0,0.00019178,2]
[390772486,1760142689028,-500.0,0.00019178,2]
[390772487,1760142689038,-1769.302141,0.00019178,2]